[Event "17th Delhi GM Open 2019-B"]
[Site "Delhi"]
[Date "2019.01.11"]
[Round "9"]
[White "Rivera Martinez, Luis Manu"]
[Black "Deepak Batra"]
[Result "*"]
[ECO "B92"]
[WhiteElo "1831"]
[BlackElo "1607"]
[Annotator "NA"]
[PlyCount "28"]
[EventDate "2019.01.09"]
[EventType "swiss"]
[EventCountry "IND"]
[SourceTitle "playchess.com"]
[Source "ChessBase"]
[SourceQuality "1"]
[TimeControl "3600+30"]

{[%evp 12,28,28,21,18,21,12,32767,32767,0,32767,32767,16,32767,31,34,22,32767,32]} 1. e4 {[%emt 0:00:00]} c5 {[%emt 0:00:00]} 2. Nf3 {[%emt 0:00:00]} d6 {[%emt 0:00:00]} 3. d4 {[%emt 0:00:00]} cxd4 {[%emt 0:00:00]} 4. Nxd4 {[%emt 0:00:00]} Nf6 {[%emt 0:00:00]} 5. Nc3 {[%emt 0:00:00]} a6 {[%emt 0:00:00]} 6. Be2 {[%emt 0:00:00]} e5 {[%emt 0:00:00]} 7. Nb3 {[%emt 0:00:00]} Be7 {[%emt 0:00:00]} 8. O-O {[%emt 0:00:00]} O-O {[%emt 0:00:00]} 9. Kh1 {[%emt 0:00:00]} Nc6 {[%emt 0:00:00]} 10. f4 {[%emt 0:00:00]} exf4 {[%emt 0:00:00]} 11. Bxf4 {[%emt 0:00:00]} Be6 {[%emt 0:00:00]} 12. Qe1 {[%emt 0:00:00]} Ne8 {[%emt 0:00:00]} 13. Rd1 {[%emt 0:00:00] LiveBook: 11 Games} Bf6 {[%emt 0:00:00]} 14. Qg3 {[%emt 0:00:00]} Be5 $14 {[%emt 0:00:00]} *

[Event "17th Delhi GM Open 2019-B"]
[Site "Delhi"]
[Date "2019.01.11"]
[Round "9"]
[White "Warude Satyam"]
[Black "Shivasubramanian R"]
[Result "1/2-1/2"]
[ECO "E61"]
[WhiteElo "1824"]
[BlackElo "1738"]
[Annotator "NA"]
[PlyCount "59"]
[EventDate "2019.01.09"]
[EventType "swiss"]
[EventCountry "IND"]
[SourceTitle "playchess.com"]
[Source "ChessBase"]
[SourceQuality "1"]
[TimeControl "3600+30"]

{[%evp 8,59,6,-4,1,32767,32767,32767,32767,32767,32767,32767,4,-12,9,0,32,-26,35,7,0,-38,0,0,0,32767,0,32767,14,0,21,32767,32767,32767,32767,32767,32767,14,10,14,10,21,14,0,0,0,0,32767,0,-12,0,-14,-4,-10]} 1. d4 {[%emt 0:00:00]} Nf6 {[%emt 0:00:00]} 2. Bf4 {[%emt 0:00:00]} g6 {[%emt 0:00:00]} 3. e3 {[%emt 0:00:00]} Bg7 {[%emt 0:00:00]} 4. Nf3 {[%emt 0:00:00]} O-O {[%emt 0:00:00]} 5. h3 {[%emt 0:00:00]} d6 {[%emt 0:00:00]} 6. c4 {[%emt 0:00:00]} Nbd7 {[%emt 0:00:00]} 7. Nc3 {[%emt 0:00:00]} b6 {[%emt 0:00:00]} 8. Be2 {[%emt 0:00:00]} Bb7 {[%emt 0:00:00]} 9. O-O {[%emt 0:00:00]} Re8 {[%emt 0:00:00]} 10. Bh2 {[%emt 0:00:00] LiveBook: 29 Games} a6 {[%emt 0:00:00] E61: King's Indian: Early deviations for White, including Smyslov System} (10... e5 11. d5 a5 12. b3 Nc5 13. Qc2 Bc8 14. Rad1 Bf5 15. Qc1 Nfe4 16. Nb5 Bd7 17. Ne1 f5 18. f3 {½-½ (72) Nakamura,H (2793)-Caruana,F (2787) Saint Louis 2015}) 11. Rc1 {[%emt 0:00:00]} e5 {[%emt 0:00:00]} 12. Qc2 $146 {[%emt 0:00:00]} (12. dxe5 $14 dxe5 13. Qc2) ({Predecessor:} 12. Re1 Qe7 13. b4 Rad8 14. a4 exd4 15. exd4 Bh6 16. Ra1 Bxf3 17. gxf3 Qe6 18. Kg2 {1-0 (50) Bauer,A (2250)-Barski,R (2443) Germany 2017}) 12... Qe7 {[%emt 0:00:00]} 13. b4 {[%emt 0:06:32]} exd4 {[%emt 0:00:00]} 14. exd4 {[%emt 0:00:31]} Ne4 {[%emt 0:00:00]} 15. Nxe4 {[%emt 0:08:45]} Bxe4 {[%emt 0:00:00]} 16. Qd2 {[%emt 0:00:27]} a5 {[%emt 0:02:32]} 17. b5 {[%emt 0:06:11]} Rac8 {[%emt 0:03:05]} 18. Bf4 {[%emt 0:03:58]} Nf6 {[%emt 0:06:38]} 19. Rfe1 {[%emt 0:02:35]} Qf8 {[%emt 0:01:53]} 20. Nh2 {[%emt 0:06:01]} Bf5 {[%emt 0:02:27]} 21. Bf3 {[%emt 0:02:54]} Be4 {[%emt 0:03:24]} 22. Bxe4 {[%emt 0:03:51]} Rxe4 {[%emt 0:01:02]} 23. Rxe4 {[%emt 0:01:40]} Nxe4 {[%emt 0:00:00]} 24. Qd3 {[%emt 0:00:49]} Re8 {[%emt 0:00:33]} 25. Ng4 {[%emt 0:01:41]} f5 {[%emt 0:01:21]} 26. Ne3 {[%emt 0:01:55]} Qf6 {[%emt 0:00:01]} 27. Nd5 {[%emt 0:03:46]} Qxd4 {[%emt 0:01:34]} 28. Qxd4 {[%emt 0:00:00]} Bxd4 {[%emt 0:00:00]} 29. Be3 {[%emt 0:00:15]} Bxe3 {[%emt 0:00:33]} 30. fxe3 $11 {[%emt 0:00:00]} 1/2-1/2

[Event "17th Delhi GM Open 2019-B"]
[Site "Delhi"]
[Date "2019.01.11"]
[Round "9"]
[White "Sharsha Backer"]
[Black "Saurabh Lokhande"]
[Result "1/2-1/2"]
[ECO "D92"]
[WhiteElo "1812"]
[BlackElo "1674"]
[Annotator "NA RC"]
[PlyCount "104"]
[EventDate "2019.01.09"]
[EventType "swiss"]
[EventCountry "IND"]
[SourceTitle "playchess.com"]
[Source "ChessBase"]
[SourceQuality "1"]
[TimeControl "3600+30"]

{[%evp 14,103,67,65,60,39,85,76,89,79,87,73,79,81,115,32767,124,77,65,32767,32767,32767,115,90,87,99,91,89,81,87,32767,32767,32767,32767,89,76,111,117,32767,32767,109,122,172,68,32767,32767,32767,32767,32767,32767,32767,32767,32767,32767,32767,32767,32767,32767,32767,32767,32767,32767,32767,32767,32767,32767,32767,32767,32767,32767,78,22,32767,32767,32767,32767,32767,32767,50,45,34,32767,32767,16,57,0,0,0,57,43,62,41]} 1. d4 {[%emt 0:00:00]} Nf6 {[%emt 0:00:00]} 2. Nf3 {[%emt 0:00:00]} d5 {[%emt 0:00:00]} 3. c4 {[%emt 0:00:00]} c6 {[%emt 0:00:00]} 4. Nc3 {[%emt 0:00:00]} g6 {[%emt 0:00:00]} 5. Bf4 {[%emt 0:00:00]} Bg7 {[%emt 0:00:00]} 6. e3 {[%emt 0:00:00]} Nbd7 {[%emt 0:00:00]} 7. h3 {[%emt 0:00:00] D92: Grünfeld: 4 Nf3 Bg7 5 Bf4} (7. cxd5 Nxd5 8. Nxd5 cxd5 9. Bd3 Qb6 10. Qb3 Qa5+ 11. Ke2 f6 12. Bg3 e5 13. dxe5 fxe5 14. Rhc1 O-O {1-0 (44) Halkias,S (2528)-Ftacnik,L (2603) Bled 2002}) 7... dxc4 {[%emt 0:00:00]} 8. Bxc4 {[%emt 0:00:00]} Nb6 {[%emt 0:00:00]} 9. Bd3 {[%emt 0:00:00]} Nbd5 $146 {[%emt 0:00:00]} ({Predecessor:} 9... Nfd5 10. Be5 f6 11. Bg3 Be6 12. O-O Nxc3 13. bxc3 O-O 14. e4 Qd7 {1-0 (29) Zhang,F (2104)-Leosson,A (1759) Reykjavik 2014}) 10. Be5 {[%emt 0:00:00]} Qa5 {[%emt 0:00:00]} 11. Qd2 {[%emt 0:00:00]} Nxc3 {[%emt 0:00:00]} 12. bxc3 {[%emt 0:00:00]} O-O {[%emt 0:00:00]} 13. O-O {[%emt 0:00:00]} Bf5 {[%emt 0:00:00]} 14. Bxf5 {[%emt 0:00:00]} gxf5 {[%emt 0:00:00]} 15. Qc2 {[%emt 0:00:00]} Ne4 {[%emt 0:00:00]} 16. Rfc1 {[%emt 0:00:00]} e6 {[%emt 0:00:00]} 17. Rab1 {[%emt 0:00:00]} Bxe5 {[%emt 0:00:00]} 18. Nxe5 {[%emt 0:00:00]} Qc7 {[%emt 0:00:00]} 19. f3 {[%emt 0:00:00]} Nd6 {[%emt 0:00:57]} 20. c4 {[%emt 0:00:00]} c5 {[%emt 0:03:55]} 21. Qf2 {[%emt 0:00:00]} Rad8 {[%emt 0:06:07]} 22. Nd3 {[%emt 0:00:00]} cxd4 {[%emt 0:02:51]} 23. exd4 {[%emt 0:00:00]} Ne8 {[%emt 0:08:05]} 24. c5 {[%emt 0:00:00]} Ng7 {[%emt 0:03:52]} 25. Rc4 {[%emt 0:00:00]} Rb8 {[%emt 0:01:21]} 26. Rbc1 {[%emt 0:00:00]} Rfd8 {[%emt 0:03:17]} 27. Qh4 {[%emt 0:00:00]} Rd5 {[%emt 0:03:50] [#]} 28. Nf4 {[%emt 0:00:00]} (28. c6 $1 $18) 28... Rd7 {[%emt 0:05:53]} 29. Ne2 {[%emt 0:00:00]} Qc8 {[%emt 0:05:10]} 30. Qg3 {[%emt 0:00:00]} Qc7 {[%emt 0:02:39]} 31. Qg5 {[%emt 0:00:17]} Qd8 {[%emt 0:01:03]} 32. Qh6 {[%emt 0:01:28]} Ne8 {[%emt 0:00:01]} 33. Qf4 {[%emt 0:01:47]} Nc7 {[%emt 0:02:51]} 34. Qg3+ {[%emt 0:00:01]} Kf8 {[%emt 0:01:33]} 35. Qe5 {[%emt 0:00:01]} f6 {[%emt 0:01:33]} 36. Qe3 {[%emt 0:00:01]} Qe7 {[%emt 0:01:35]} 37. c6 {[%emt 0:00:01]} bxc6 {[%emt 0:01:04]} 38. Rxc6 {[%emt 0:00:00]} Rb6 {[%emt 0:03:37]} 39. Nf4 {[%emt 0:00:01]} Kf7 {[%emt 0:02:30]} 40. Nh5 {[%emt 0:00:01]} Kg6 {[%emt 0:01:44]} 41. Nf4+ {[%emt 0:00:00]} Kf7 {[%emt 0:01:41]} 42. Nd3 {[%emt 0:00:02]} Rxc6 {[%emt 0:02:19]} 43. Rxc6 {[%emt 0:00:01]} Rd6 {[%emt 0:00:58]} 44. Rc4 {[%emt 0:00:01]} Kg6 {[%emt 0:00:43]} 45. Nf4+ {[%emt 0:00:01]} Kf7 {[%emt 0:02:30]} 46. Qc1 {[%emt 0:00:01]} Nd5 {[%emt 0:01:56]} 47. Nxd5 {[%emt 0:00:00]} Rxd5 {[%emt 0:00:19]} 48. Qh6 {[%emt 0:00:30]} Ke8 {[%emt 0:04:07]} 49. Rc8+ {[%emt 0:00:01]} Rd8 {[%emt 0:00:39]} 50. Rc4 {[%emt 0:00:49]} Rd5 {[%emt 0:01:59]} 51. Qf4 {[%emt 0:01:04]} Rd7 $14 {[%emt 0:01:38]} 52. a4 {[%emt 0:01:34]} Qd6 {[%emt 0:00:00]} 1/2-1/2

[Event "17th Delhi GM Open 2019-B"]
[Site "Delhi"]
[Date "2019.01.11"]
[Round "9"]
[White "Manu, M."]
[Black "Deepak Batra"]
[Result "1/2-1/2"]
[ECO "B92"]
[WhiteElo "1732"]
[BlackElo "1607"]
[Annotator "NA RC"]
[PlyCount "111"]
[EventDate "2019.01.09"]
[EventType "swiss"]
[EventCountry "IND"]
[SourceTitle "playchess.com"]
[Source "ChessBase"]
[SourceQuality "1"]
[TimeControl "3600+30"]

1. e4 {[%emt 0:52:43]} c5 {[%emt 1:00:22]} 2. Nf3 {[%emt 0:08:15]} d6 {[%emt 0:00:33]} 3. d4 {[%emt 0:00:31]} cxd4 {[%emt 0:00:31]} 4. Nxd4 {[%emt 0:00:30]} Nf6 {[%emt 0:00:28]} 5. Nc3 {[%emt 0:00:29]} a6 {[%emt 0:00:32]} 6. Be2 {[%emt 0:00:29]} e5 {[%emt 0:00:28]} 7. Nb3 {[%emt 0:00:31]} Be7 {[%emt 0:00:29]} 8. O-O {[%emt 0:00:29]} O-O {[%emt 0:00:27]} 9. Kh1 {[%emt 0:00:00]} Nc6 {[%emt 0:00:00]} 10. f4 {[%emt 0:00:41]} exf4 {[%emt 0:00:35]} 11. Bxf4 {[%emt 0:00:51]} Be6 {[%emt 0:00:40]} 12. Qe1 {[%emt 0:00:00]} Ne8 {[%emt 0:00:00]} 13. Rd1 {[%emt 0:00:00] LiveBook: 11 Games} Bf6 {[%emt 0:00:00]} 14. Qg3 {[%emt 0:00:00]} Be5 $14 {[%emt 0:00:00]} 15. Nc5 Qe7 16. Nxe6 fxe6 17. Qe3 Bxf4 18. Rxf4 Rxf4 19. Qxf4 Ne5 20. Qe3 Nf6 21. Qb6 Rd8 22. h3 h6 23. a4 Ng6 24. Bc4 Rd7 25. b4 Ne5 26. Bb3 Kh7 27. a5 Rc7 28. Rxd6 Rxc3 29. Rxe6 Qd7 30. Rxe5 Rxh3+ 31. gxh3 Qxh3+ 32. Kg1 Qg3+ 33. Kf1 Qxe5 34. Qxb7 Qf4+ 35. Ke2 Nxe4 36. Qb6 Qd2+ 37. Kf3 Ng5+ 38. Kg4 Qe2+ 39. Kf4 Qe4+ 40. Kg3 Qf3+ 41. Kh2 Qg4 42. Bd5 Qe2+ 43. Bg2 Qxc2 44. b5 Qb2 45. Qc5 Qd2 46. bxa6 Qf4+ 47. Kg1 Qg3 48. Kf1 Qd3+ 49. Kf2 Qxa6 50. Qf5+ Kh8 51. Qf8+ Kh7 52. Qf5+ Kh8 53. Bf1 Qa7+ 54. Ke1 Qe3+ 55. Kd1 Ne4 56. Be2 1/2-1/2

[Event "17th Delhi GM Open 2019-B"]
[Site "Delhi"]
[Date "2019.01.11"]
[Round "9"]
[White "Prakash Yadav"]
[Black "Anwar N K"]
[Result "1-0"]
[ECO "A43"]
[WhiteElo "1718"]
[BlackElo "1817"]
[Annotator "NA"]
[PlyCount "57"]
[EventDate "2019.01.09"]
[EventType "swiss"]
[EventCountry "IND"]
[SourceTitle "playchess.com"]
[Source "ChessBase"]
[SourceQuality "1"]
[TimeControl "3600+30"]

{[%evp 8,49,35,28,50,32767,46,32767,32767,0,78,14,108,128,125,142,204,184,179,32767,25,31,32767,32767,20,46,32767,37,95,58,97,47,32767,32767,32767,32767,327,312,714,873,977,32767,32767,1070]} 1. e4 {[%emt 0:00:00]} c5 {[%emt 0:00:00]} 2. d4 {[%emt 0:00:00]} e6 {[%emt 0:00:00]} 3. d5 {[%emt 0:00:00]} d6 {[%emt 0:00:00]} 4. dxe6 {[%emt 0:00:00] A43: Schmid Benoni} (4. Nc3 a6 5. a4 Be7 6. Nf3 e5 7. Be2 Nf6 8. Nd2 Nbd7 9. a5 Nf8 10. Nc4 Ng6 11. Nb6 Rb8 {1-0 (43) Feller,S (2574)-Flom,G (2501) Brest 2018}) 4... fxe6 {[%emt 0:00:00]} 5. Nf3 {[%emt 0:00:00]} Nc6 {[%emt 0:00:00]} 6. Bb5 {[%emt 0:00:00]} Bd7 {[%emt 0:00:00]} 7. O-O {[%emt 0:00:00]} Be7 $146 {[%emt 0:00:00]} ({Predecessor:} 7... Qc7 8. Ng5 Nf6 9. Bc4 Nd8 10. e5 dxe5 11. Nc3 h6 12. Nge4 Nxe4 {1-0 (66) Enkhtuul,A (2249)-Jakubiec,E (2206) Erbil 2013}) 8. Bc4 {[%emt 0:00:00]} h6 {[%emt 0:00:00]} (8... Nf6 $11) 9. e5 {[%emt 0:00:00]} Qc7 {[%emt 0:00:00]} (9... dxe5 $11 {keeps the balance.} 10. Nc3 Qc7) 10. exd6 {[%emt 0:00:00]} Bxd6 {[%emt 0:00:05] [#]} 11. Nc3 $1 {[%emt 0:00:00]} a6 {[%emt 0:00:10]} (11... Nd4 $16 {is a better defense.}) 12. Ne4 {[%emt 0:00:00]} Be7 {[%emt 0:00:24]} 13. a4 {[%emt 0:02:52]} Nf6 {[%emt 0:03:02]} 14. Nxf6+ {[%emt 0:02:07]} Bxf6 {[%emt 0:00:37]} 15. c3 {[%emt 0:00:53]} O-O-O {[%emt 0:02:50]} 16. Qe2 {[%emt 0:04:56]} g5 {[%emt 0:04:43]} 17. Be3 {[%emt 0:02:28]} Ne5 {[%emt 0:02:02]} ({Black should try} 17... Ne7 $14) 18. Nxe5 {[%emt 0:03:39]} Bxe5 {[%emt 0:00:05]} 19. b4 {[%emt 0:03:06]} cxb4 {[%emt 0:09:03]} 20. cxb4 {[%emt 0:04:08]} Bxa1 {[%emt 0:00:48]} 21. Rxa1 {[%emt 0:00:03]} a5 $2 {[%emt 0:11:22]} (21... Kb8 $16) 22. Rc1 {[%emt 0:04:58]} Qd6 $2 {[%emt 0:05:05]} ({Not} 22... axb4 {[#]} 23. Bxe6 $1 {[%mdl 512]} Bxe6 24. Rxc7+ Kxc7 25. h4 $1 $16 {[%mdl 512]}) (22... Kb8 23. Bd4 Ka8) 23. Ba7 {[%emt 0:00:03]} Qc7 {[%emt 0:01:11]} 24. Qe3 {[%emt 0:01:20]} Rde8 {[%emt 0:01:30]} 25. Bb3 $18 {[%emt 0:04:04]} Bc6 {[%emt 0:00:31]} 26. Bxe6+ {[%emt 0:00:26]} Rxe6 {[%emt 0:00:01]} 27. Qxe6+ {[%emt 0:00:01]} Qd7 {[%emt 0:00:19]} 28. Qe5 {[%emt 0:00:03]} Re8 {[%emt 0:01:29]} 29. Qb8# {[%emt 0:00:01]} 1-0

[Event "17th Delhi GM Open 2019-B"]
[Site "Delhi"]
[Date "2019.01.11"]
[Round "9"]
[White "Yadav Prem Gopal"]
[Black "Baig, Akram"]
[Result "1-0"]
[ECO "C00"]
[WhiteElo "1669"]
[BlackElo "1805"]
[Annotator "NA"]
[PlyCount "92"]
[EventDate "2019.01.09"]
[EventType "swiss"]
[EventCountry "IND"]
[SourceTitle "playchess.com"]
[Source "ChessBase"]
[SourceQuality "1"]
[TimeControl "3600+30"]

1. e4 {[%emt 0:51:40]} e6 {[%emt 1:00:27]} 2. d3 {[%emt 0:09:13]} c5 {[%emt 0:00:00]} 3. Nf3 {[%emt 0:00:26]} d5 {[%emt 0:00:56]} 4. Nbd2 {[%emt 0:00:38]} Nf6 {[%emt 0:00:26]} 5. g3 {[%emt 0:00:28]} b6 {[%emt 0:00:10]} 6. Bg2 {[%emt 0:00:20]} Bb7 {[%emt 0:00:00]} 7. e5 {[%emt 0:00:00]} Nfd7 {[%emt 0:00:55]} 8. O-O {[%emt 0:01:07]} Nc6 {[%emt 0:01:00]} 9. Re1 {[%emt 0:00:34]} Qc7 {[%emt 0:00:19]} 10. Qe2 {[%emt 0:00:29]} g6 {[%emt 0:00:17] C00: French: Unusual White 2nd moves} ({Black should play} 10... Be7 $15 11. Nf1 h6 12. h4 O-O-O 13. N1h2 Rde8 14. c4 dxc4 15. dxc4 Bd8 16. b3 f5 17. h5 Reg8 18. a3 g6 19. b4 gxh5 20. b5 Ncxe5 21. Bf4 Bg5 22. Rad1 Bxf4 {0-1 (22) Korobkov,P (2516)-Lysyj,I (2596) Zvenigorod 2008}) 11. Nf1 {[%emt 0:00:00]} Bg7 {[%emt 0:00:38]} 12. Bf4 {[%emt 0:00:55]} Rc8 $146 {[%emt 0:00:00]} ({Predecessor:} 12... O-O-O 13. c3 h6 14. d4 g5 15. Be3 f6 16. exf6 Bxf6 17. b4 cxb4 18. cxb4 Nxb4 {1-0 (36) Sundell,B (2142)-Modell,B (1494) Ostersund 2018}) 13. c3 {[%emt 0:00:14]} Ba6 {[%emt 0:00:33]} 14. h4 {[%emt 0:00:16]} b5 {[%emt 0:00:00]} (14... O-O $11 {remains equal.}) 15. N1h2 {[%emt 0:00:00]} b4 {[%emt 0:00:26]} 16. h5 {[%emt 0:00:06]} gxh5 {[%emt 0:01:11] [#]} 17. Qe3 {[%emt 0:00:00]} (17. c4 $1 $16) 17... bxc3 {[%emt 0:00:00]} 18. bxc3 {[%emt 0:02:30]} Ne7 {[%emt 0:00:26]} 19. Rac1 {[%emt 0:00:00]} Ng6 {[%emt 0:00:53]} 20. d4 {[%emt 0:00:00]} h6 {[%emt 0:00:00]} 21. Nh4 {[%emt 0:00:00]} Ndf8 {[%emt 0:01:24]} (21... Nxh4 $17 22. gxh4 Nf8) 22. N2f3 {[%emt 0:00:00]} Qe7 {[%emt 0:00:27]} 23. Bh3 {[%emt 0:00:51]} Bc4 {[%emt 0:00:00]} 24. a4 {[%emt 0:00:52]} Bb3 {[%emt 0:00:31]} 25. Ra1 {[%emt 0:01:34]} c4 {[%emt 0:00:37]} 26. Qd2 {[%emt 0:00:00]} a5 {[%emt 0:00:14]} 27. Be3 {[%emt 0:00:49]} Nxh4 {[%emt 0:01:12]} 28. Nxh4 {[%emt 0:00:52]} Ng6 {[%emt 0:00:34]} 29. Ng2 {[%emt 0:00:00]} h4 {[%emt 0:00:16]} 30. g4 {[%emt 0:00:59]} Qd7 {[%emt 0:00:10]} 31. f4 {[%emt 0:00:16]} h5 {[%emt 0:01:02]} 32. gxh5 {[%emt 0:00:00]} Rxh5 {[%emt 0:00:38]} 33. Qe2 {[%emt 0:00:37]} Rh7 {[%emt 0:00:00] [#]} 34. f5 $1 {[%emt 0:00:49]} Nf8 {[%emt 0:00:00]} 35. Rf1 {[%emt 0:00:00]} Kd8 {[%emt 0:00:00]} (35... Bxa4 36. fxe6 fxe6 37. Bg5) 36. Rf3 {[%emt 0:00:00]} Rc7 {[%emt 0:00:00]} 37. fxe6 {[%emt 0:01:00]} Nxe6 {[%emt 0:02:23]} (37... fxe6 $16 38. Rf2 Kc8) 38. Raf1 {[%emt 0:00:00]} Bf8 $18 {[%emt 0:00:20]} 39. Bg5+ {[%emt 0:00:00]} Ke8 {[%emt 0:00:13]} 40. Nf4 {[%emt 0:00:00]} Be7 {[%emt 0:00:00]} 41. Bxe6 fxe6 42. Ng6 Qxa4 43. Bxe7 Rg7 44. Rf8+ Kd7 45. Qg4 Bc2 46. Qxe6+ Kxe6 1-0

[Event "17th Delhi GM Open 2019-B"]
[Site "Delhi"]
[Date "2019.01.11"]
[Round "9"]
[White "Sham R"]
[Black "Dhanush Ragav N S"]
[Result "0-1"]
[ECO "C30"]
[WhiteElo "1590"]
[BlackElo "1854"]
[Annotator "NA"]
[PlyCount "63"]
[EventDate "2019.01.09"]
[EventType "swiss"]
[EventCountry "IND"]
[SourceTitle "playchess.com"]
[Source "ChessBase"]
[SourceQuality "1"]
[TimeControl "3600+30"]

1. e4 {[%emt 0:00:00]} e5 {[%emt 0:00:00]} 2. f4 {[%emt 0:00:00]} Bc5 {[%emt 0:00:00]} 3. Nf3 {[%emt 0:00:00]} d6 {[%emt 0:00:00]} 4. c3 {[%emt 0:00:00]} Nf6 {[%emt 0:00:00]} 5. d4 {[%emt 0:00:00]} exd4 {[%emt 0:00:00]} 6. cxd4 {[%emt 0:00:00]} Bb6 $1 {[%emt 0:00:00]} 7. Nc3 {[%emt 0:00:00] LiveBook: 24 Games} Bg4 {[%emt 0:15:51] C30: King's Gambit Declined} (7... O-O 8. Bd3 Nc6 9. Be3 Bg4 10. Bc2 Re8 11. O-O Bxf3 12. gxf3 Na5 13. Qd3 c5 14. dxc5 Bxc5 15. Bxc5 dxc5 {½-½ (58) Zaitsev,A (2504)-Sosulin,E (2416) Pervomaisky 2016}) 8. Be2 {[%emt 0:00:00]} Nc6 {[%emt 0:05:10]} 9. Be3 {[%emt 0:00:00]} Qe7 {[%emt 0:09:26]} 10. h3 $146 {[%emt 0:00:00]} ({Predecessor:} 10. Qd3 O-O-O 11. h3 Nb4 12. Qb1 Nbd5 13. Nxd5 Nxd5 {0-1 (49) Durand,S (1865)-Hajage,M (1818) Paris 2012}) 10... Bxf3 {[%emt 0:10:01]} 11. Bxf3 {[%emt 0:00:00]} Nxe4 {[%emt 0:00:01]} 12. Bxe4 {[%emt 0:00:00]} d5 {[%emt 0:00:00]} 13. O-O {[%emt 0:00:00]} (13. Qe2 $11 dxe4 14. O-O-O) 13... dxe4 {[%emt 0:00:00]} 14. Nd5 {[%emt 0:00:00]} Qd7 {[%emt 0:05:31]} 15. Nxb6 {[%emt 0:00:00]} axb6 {[%emt 0:06:22]} 16. f5 {[%emt 0:00:00]} O-O-O {[%emt 0:00:01]} 17. Qg4 {[%emt 0:00:00]} Nxd4 {[%emt 0:00:00]} 18. Rad1 {[%emt 0:00:00]} c5 {[%emt 0:00:00]} 19. Bxd4 {[%emt 0:00:00]} cxd4 {[%emt 0:00:00]} 20. Qxe4 $15 {[%emt 0:00:00]} Rhe8 {[%emt 0:05:03]} 21. Qf4 {[%emt 0:00:00]} Qd6 {[%emt 0:00:04]} 22. Rxd4 {[%emt 0:00:00]} Qxd4+ {[%emt 0:00:00]} 23. Kh2 {[%emt 0:00:00]} Qxf4+ {[%emt 0:00:01]} 24. Rxf4 {[%emt 0:00:00]} g6 {[%emt 0:00:50]} 25. Rh4 {[%emt 0:00:00]} h5 {[%emt 0:00:07]} 26. Rc4+ {[%emt 0:00:00]} Kb8 {[%emt 0:00:45]} 27. Rb4 {[%emt 0:00:00]} Re2 {[%emt 0:00:39]} 28. fxg6 {[%emt 0:00:00]} fxg6 {[%emt 0:00:32]} 29. Rxb6 {[%emt 0:00:00]} Rdd2 {[%emt 0:04:32]} 30. Rxg6 {[%emt 0:00:00]} Rxb2 {[%emt 0:00:00]} 31. h4 {[%emt 0:00:00]} Rxa2 {[%emt 0:00:00]} 32. Kh1 {[%emt 0:00:00]} 0-1